bitfinex/quotes_BTCUSD_20250920
["timestamp","ask_amount","ask_price","bid_price","bid_amount"]
[1758362954290,0.05067199,115900.0,115890.0,0.89873551]
[1758362954708,0.05067199,115900.0,115890.0,0.92455551]
[1758362958697,0.05067199,115900.0,115890.0,0.89668551]
[1758362959096,0.05067199,115900.0,115890.0,0.89873551]
[1758362959313,0.05067199,115900.0,115890.0,0.92455551]
[1758362962871,0.04869199,115900.0,115890.0,0.92455551]
[1758362965368,0.02608199,115900.0,115890.0,0.92455551]
[1758362973863,0.02608199,115900.0,115890.0,1.24648582]
[1758363001826,0.02608199,115900.0,115890.0,1.21633392]
[1758363002035,0.02608199,115900.0,115890.0,1.24648582]
[1758363005430,0.02608199,115900.0,115890.0,1.21633392]
[1758363005751,0.02608199,115900.0,115890.0,1.24648582]
[1758363030555,0.02608199,115900.0,115890.0,1.56841613]
[1758363032062,0.02608199,115900.0,115890.0,1.24648582]
[1758363032945,0.02608199,115900.0,115890.0,1.56841613]
[1758363033853,0.02608199,115900.0,115890.0,0.92455551]
[1758363034075,0.02608199,115900.0,115890.0,1.56827293]
[1758363038039,0.02608199,115900.0,115890.0,1.59420808]
[1758363038698,0.02608199,115900.0,115890.0,1.68748808]
[1758363040218,4.684e-05,115900.0,115890.0,1.68748808]
[1758363052952,4.684e-05,115900.0,115890.0,1.36562937]
[1758363053837,4.684e-05,115900.0,115890.0,1.04377066]
[1758363054047,4.684e-05,115900.0,115890.0,1.36562937]
[1758363063672,4.684e-05,115900.0,115890.0,1.04377066]
[1758363064167,4.684e-05,115900.0,115890.0,1.36562937]
[1758363064813,4.684e-05,115900.0,115890.0,1.68748808]
[1758363065906,4.684e-05,115900.0,115890.0,1.68544808]
[1758363066378,1e-08,115900.0,115890.0,1.69244808]
[1758363067171,1e-08,115900.0,115890.0,1.68644808]
[1758363067375,1e-08,115900.0,115890.0,2.07152808]
[1758363070371,1e-08,115900.0,115890.0,2.15192807]
[1758363070611,1e-08,115900.0,115890.0,2.20192807]
[1758363071042,0.0001,115930.0,115920.0,0.20268468]
[1758363071263,0.00014696,115930.0,115920.0,0.81158614]
[1758363071492,0.00014696,115930.0,115920.0,0.68084435]
[1758363071717,4.696e-05,115930.0,115920.0,1.00280306]
[1758363071932,4.696e-05,115930.0,115920.0,1.02873023]
[1758363072530,4.696e-05,115930.0,115920.0,0.75681023]
[1758363072742,4.696e-05,115930.0,115920.0,1.02873023]
[1758363072986,4.696e-05,115930.0,115920.0,1.03073023]
[1758363073202,4.696e-05,115930.0,115920.0,1.03069023]
[1758363073417,4.696e-05,115930.0,115920.0,0.43695152]
[1758363073638,4.696e-05,115930.0,115920.0,0.71079152]
[1758363073853,0.02270696,115930.0,115920.0,0.71079152]
[1758363074064,0.02270696,115930.0,115920.0,0.71942792]
[1758363074280,0.02476696,115930.0,115920.0,0.44758792]
[1758363074913,0.02476696,115930.0,115920.0,0.71942792]
[1758363079426,0.02476696,115930.0,115920.0,0.44758792]
[1758363079625,0.02476696,115930.0,115920.0,0.71930792]
[1758363079826,0.02476696,115930.0,115920.0,0.78507567]
[1758363081830,0.02476696,115930.0,115920.0,1.05317567]
[1758363083473,0.02476696,115930.0,115920.0,1.05305567]
[1758363084070,0.02476696,115930.0,115920.0,0.78145567]
[1758363084263,0.02476696,115930.0,115920.0,1.05297567]
[1758363084469,0.02270696,115930.0,115920.0,1.05297567]
[1758363084889,0.02270696,115930.0,115920.0,0.78145567]
[1758363085602,0.02270696,115930.0,115920.0,1.05293567]
[1758363086213,0.02270696,115930.0,115920.0,0.78145567]
[1758363086842,0.02270696,115930.0,115920.0,1.05285567]
[1758363087865,4.696e-05,115930.0,115920.0,1.05285567]
[1758363095869,4.696e-05,115930.0,115920.0,1.37460919]
[1758363128579,4.696e-05,115930.0,115920.0,1.05285567]
[1758363128792,4.696e-05,115930.0,115920.0,1.37460919]
[1758363129370,4.696e-05,115930.0,115920.0,1.05285567]
[1758363129545,4.696e-05,115930.0,115920.0,1.37460919]
[1758363141637,4.696e-05,115930.0,115920.0,1.05285567]
[1758363145147,4.696e-05,115930.0,115920.0,1.05157567]
[1758363147659,4.696e-05,115930.0,115920.0,1.37332919]
[1758363148772,4.696e-05,115930.0,115920.0,1.37328919]
[1758363150362,4.696e-05,115930.0,115920.0,1.05153567]
[1758363150708,4.696e-05,115930.0,115920.0,1.37328919]
[1758363153072,4.696e-05,115930.0,115920.0,1.05153567]
[1758363153273,4.696e-05,115930.0,115920.0,1.37328919]
[1758363155834,4.696e-05,115930.0,115920.0,1.05153567]
[1758363163783,0.00207696,115930.0,115920.0,1.01500927]
[1758363164043,0.03018696,115930.0,115920.0,1.01496927]
[1758363164429,0.35195446,115930.0,115920.0,1.01496927]
[1758363164572,0.34876446,115930.0,115920.0,1.01496927]
[1758363164777,0.34876446,115930.0,115920.0,1.01712927]
[1758363165086,0.34876446,115930.0,115920.0,1.02586495]
[1758363165818,0.34876446,115930.0,115920.0,1.01712927]
[1758363166865,0.34876446,115930.0,115920.0,1.02598715]
[1758363167475,0.02699696,115930.0,115920.0,1.02598715]
[1758363169374,0.02496696,115930.0,115920.0,1.05399715]
[1758363169779,0.02699696,115930.0,115920.0,1.05399715]
[1758363170586,0.02699696,115930.0,115920.0,1.02598715]
[1758363172481,0.02699696,115930.0,115920.0,1.05399715]
[1758363175381,0.02496696,115930.0,115920.0,1.05399715]
[1758363175567,4.696e-05,115930.0,115920.0,1.05399715]
[1758363177228,0.02372696,115930.0,115920.0,1.05399715]
[1758363178851,4.696e-05,115930.0,115920.0,1.05399715]
[1758363184879,0.32394446,115930.0,115920.0,0.74508927]
[1758363185101,0.35141446,115930.0,115920.0,0.9886821]
[1758363185292,0.35141446,115930.0,115920.0,0.7191621]
[1758363185506,0.52393235,115930.0,115920.0,0.6890102]
[1758363185840,0.52393235,115930.0,115920.0,0.9887621]
[1758363185955,0.54986412,115930.0,115920.0,0.9887621]
[1758363186177,0.54986412,115930.0,115920.0,0.8955221]
[1758363186410,0.37734623,115930.0,115920.0,0.8955221]
[1758363186840,0.37744623,115930.0,115920.0,0.8955221]
[1758363187257,0.37433623,115930.0,115920.0,0.8955221]
[1758363188560,0.37744623,115930.0,115920.0,0.8955221]
[1758363193455,0.37433623,115930.0,115920.0,0.8955221]
[1758363193855,0.34997623,115930.0,115920.0,0.8975221]
[1758363194051,0.02607873,115930.0,115920.0,0.9005821]
[1758363194262,0.02607873,115930.0,115920.0,0.9233221]
[1758363195454,0.05043873,115930.0,115920.0,0.9233221]
[1758363196512,0.37220623,115930.0,115920.0,0.9233221]
[1758363197286,0.37433623,115930.0,115920.0,0.9233221]
[1758363198173,0.37433623,115930.0,115920.0,0.6279221]
[1758363198427,0.37433623,115930.0,115920.0,0.8974421]
[1758363202614,0.37433623,115930.0,115920.0,0.8973221]
[1758363206832,0.37433623,115930.0,115920.0,0.6279221]
[1758363206978,0.37433623,115930.0,115920.0,0.8973221]
[1758363207608,0.37433623,115930.0,115920.0,0.8972821]
[1758363212393,0.05256873,115930.0,115920.0,0.8972821]
[1758363212526,0.37433623,115930.0,115920.0,0.8972821]
[1758363213446,0.37433623,115930.0,115920.0,0.9002921]
[1758363213852,0.37433623,115930.0,115920.0,0.9249621]
[1758363215221,0.37389623,115930.0,115920.0,0.9249621]
[1758363216115,0.02563873,115930.0,115920.0,0.9002921]
[1758363216351,0.34740623,115930.0,115920.0,0.9249621]
[1758363217828,0.34745704,115930.0,115920.0,0.9249621]
[1758363227479,0.34745704,115930.0,115920.0,0.9247621]
[1758363241981,0.37122704,115930.0,115920.0,0.9245621]
[1758363242191,0.37325704,115930.0,115920.0,0.9245621]
[1758363244374,0.37325704,115930.0,115920.0,0.92120746]
[1758363250417,0.37325704,115930.0,115920.0,0.91564703]
[1758363253377,0.37325704,115930.0,115920.0,0.91534829]
[1758363253581,0.37325704,115930.0,115920.0,0.93047104]
[1758363253787,0.37325704,115930.0,115920.0,0.91534829]
[1758363256112,0.37122704,115930.0,115920.0,0.91534829]
[1758363261593,0.37122704,115930.0,115920.0,0.91518829]
[1758363261811,0.37122704,115930.0,115920.0,0.88746829]
[1758363261812,0.37325704,115930.0,115920.0,0.88746829]
[1758363264305,0.37647704,115930.0,115920.0,0.88519578]
[1758363267059,0.37325704,115930.0,115920.0,0.88519578]
[1758363268115,0.37325704,115930.0,115920.0,0.88722578]
[1758363270508,0.37325704,115930.0,115920.0,0.91467578]
[1758363272027,0.34745704,115930.0,115920.0,0.89042578]
[1758363272237,0.34745704,115930.0,115920.0,0.91467578]
[1758363279805,0.34746818,115930.0,115920.0,0.91467578]
[1758363293172,0.34746818,115930.0,115920.0,0.64591578]
[1758363293359,0.34746818,115930.0,115920.0,0.91467578]
[1758363297551,0.02563873,115930.0,115920.0,0.91467578]
[1758363297796,0.34746818,115930.0,115920.0,0.91470578]
[1758363300511,0.02563873,115930.0,115920.0,0.91391574]
[1758363301453,0.02563873,115930.0,115920.0,0.64581574]
[1758363301684,0.0001,115930.0,115920.0,0.96764519]
[1758363301945,0.0001,115930.0,115920.0,1.28947464]
[1758363302152,0.0001,115930.0,115920.0,0.99357236]
[1758363303068,0.0001,115940.0,115930.0,0.20266979]
[1758363303285,0.0001,115940.0,115930.0,0.31533946]
[1758363303502,0.0001,115940.0,115930.0,0.31742946]
[1758363303989,0.0001,115940.0,115930.0,0.34335441]
[1758363304335,0.0001,115940.0,115930.0,0.34345441]
[1758363304761,0.0001,115940.0,115930.0,0.93400386]
[1758363305128,0.0031,115940.0,115930.0,0.93400386]
[1758363305966,0.0001,115940.0,115930.0,0.93400386]
[1758363307229,0.0001,115940.0,115930.0,1.20210386]
[1758363307658,0.0001,115940.0,115930.0,1.20410386]
[1758363307869,0.0001,115940.0,115930.0,1.17817891]
[1758363309581,0.0001,115940.0,115930.0,0.90945891]
[1758363309806,0.0001,115940.0,115930.0,1.17817891]
[1758363310014,0.0001,115940.0,115930.0,0.85634946]
[1758363310916,0.0001,115940.0,115930.0,0.58762946]
[1758363311130,0.0001,115940.0,115930.0,0.85634946]
[1758363314465,0.0001,115940.0,115930.0,0.58762946]
[1758363314708,0.0001,115940.0,115930.0,0.85634946]
[1758363316235,0.0001,115940.0,115930.0,0.58824946]
[1758363316389,0.0001,115940.0,115930.0,0.58820946]
[1758363321279,0.0001,115940.0,115930.0,0.68144946]
[1758363321984,0.0001,115940.0,115930.0,0.41276946]
[1758363322182,0.0001,115940.0,115930.0,0.94954946]
[1758363330736,0.0001,115940.0,115930.0,0.68086946]
[1758363330950,0.0001,115940.0,115930.0,0.94954946]
[1758363339893,0.0001,115940.0,115930.0,1.27127012]
[1758363345339,0.0001,115940.0,115930.0,0.94954946]
[1758363349109,0.0001,115940.0,115930.0,0.94950946]
[1758363354778,0.0001,115940.0,115930.0,0.68086946]
[1758363354983,0.0001,115940.0,115930.0,0.94950946]
[1758363361850,0.32182066,115940.0,115930.0,0.94950946]
[1758363362191,0.0001,115940.0,115930.0,1.27123012]
[1758363362402,0.32182066,115940.0,115930.0,0.94950946]
[1758363362602,0.0227,115940.0,115930.0,0.94950946]
[1758363363853,0.0001,115940.0,115930.0,0.94950946]
[1758363364278,0.0001,115940.0,115930.0,1.27123012]
[1758363368638,0.0001,115940.0,115930.0,1.29715507]
[1758363368846,0.0001,115940.0,115930.0,1.29711507]
[1758363374828,0.0001,115940.0,115930.0,0.97539441]
[1758363375189,0.0001,115940.0,115930.0,1.29711507]
[1758363393393,0.00207,115940.0,115930.0,1.17643507]
[1758363393569,0.02615,115940.0,115930.0,1.17643507]
[1758363394007,0.02615,115940.0,115930.0,1.20327507]
[1758363394294,0.0001,115940.0,115930.0,1.20327507]
[1758363401742,0.0001,115940.0,115930.0,1.20325567]
[1758363403554,0.0001,115940.0,115930.0,1.29649567]
[1758363425385,0.0001,115940.0,115930.0,0.97479441]
[1758363425816,0.0001,115940.0,115930.0,0.70623441]
[1758363426031,0.0001,115940.0,115930.0,1.29645567]
[1758363426251,0.0001,115940.0,115930.0,1.20321567]
[1758363426714,0.0001,115940.0,115930.0,0.61299441]
[1758363426933,0.03017,115940.0,115930.0,1.17428567]
[1758363427587,0.02699,115940.0,115930.0,1.17428567]
[1758363427791,0.02699,115940.0,115930.0,1.17641567]
[1758363428044,0.0001,115940.0,115930.0,1.17949567]
[1758363428271,0.0001,115940.0,115930.0,1.20240567]
[1758363428466,0.0001,115950.0,115940.0,0.20265491]
[1758363428713,0.00014695,115950.0,115940.0,0.90413584]
[1758363428923,0.00014695,115950.0,115940.0,0.90626584]
[1758363429761,0.00014695,115950.0,115940.0,0.93218826]
[1758363429969,0.00304695,115950.0,115940.0,0.93218826]
[1758363430777,4.695e-05,115950.0,115940.0,0.93218826]
[1758363431161,4.695e-05,115950.0,115940.0,1.00251826]
[1758363431372,4.695e-05,115950.0,115940.0,1.02552826]
[1758363431572,4.695e-05,115950.0,115940.0,0.75700826]
[1758363431799,4.695e-05,115950.0,115940.0,1.02652826]
[1758363432017,4.695e-05,115950.0,115940.0,1.29462826]
[1758363433960,4.695e-05,115950.0,115940.0,0.972927]
[1758363434150,4.695e-05,115950.0,115940.0,1.29462826]
[1758363434687,0.00209695,115950.0,115940.0,0.944767]
[1758363434906,0.03011695,115950.0,115940.0,0.944767]
[1758363435107,0.02693695,115950.0,115940.0,0.944767]
[1758363435263,0.02693695,115950.0,115940.0,0.946897]
[1758363435678,0.02693695,115950.0,115940.0,1.26859826]
[1758363437285,0.02693695,115950.0,115940.0,1.29458826]
[1758363439800,0.02693695,115950.0,115940.0,0.972887]
[1758363440155,0.02693695,115950.0,115940.0,1.29458826]
[1758363442274,0.02488695,115950.0,115940.0,0.972887]
[1758363442482,0.02488695,115950.0,115940.0,1.29458826]
[1758363444801,0.02488695,115950.0,115940.0,0.972887]
[1758363444802,0.02693695,115950.0,115940.0,0.972887]
[1758363445003,0.02693695,115950.0,115940.0,0.946897]
[1758363445216,0.02693695,115950.0,115940.0,1.26859826]
[1758363445410,0.02693695,115950.0,115940.0,1.29458826]
[1758363448481,0.02488695,115950.0,115940.0,1.29458826]
[1758363453792,4.695e-05,115950.0,115940.0,1.29458826]
[1758363463880,4.695e-05,115950.0,115940.0,1.29454004]
[1758363464633,0.00212695,115950.0,115940.0,0.678417]
[1758363464838,0.02640695,115950.0,115940.0,1.26638004]
[1758363465288,0.02640695,115950.0,115940.0,1.26841004]
[1758363465483,4.695e-05,115950.0,115940.0,1.61653308]
[1758363471637,4.695e-05,115950.0,115940.0,1.29488004]
[1758363471898,4.695e-05,115950.0,115940.0,1.61653308]
[1758363472543,4.695e-05,115950.0,115940.0,1.29488004]
[1758363481016,0.32381999,115950.0,115940.0,0.851487]
[1758363481230,0.35049999,115950.0,115940.0,0.82556458]
[1758363481470,0.05477141,115950.0,115940.0,1.14721762]
[1758363481858,0.35280445,115950.0,115940.0,0.55712458]
[1758363482073,0.54928259,115950.0,115940.0,0.82556458]
[1758363483077,0.54938259,115950.0,115940.0,0.82556458]
[1758363483397,0.37689445,115950.0,115940.0,0.82556458]
[1758363483948,0.05524141,115950.0,115940.0,0.82556458]
[1758363484833,0.05218141,115950.0,115940.0,0.82556458]
[1758363485879,0.22466955,115950.0,115940.0,0.82556458]
[1758363486572,0.05218141,115950.0,115940.0,0.82556458]
[1758363486994,0.22466955,115950.0,115940.0,0.82556458]
[1758363488844,0.22466955,115950.0,115940.0,0.82754458]
[1758363489918,0.54632259,115950.0,115940.0,0.82754458]
[1758363490819,0.22466955,115950.0,115940.0,0.82754458]
[1758363490996,0.54632259,115950.0,115940.0,0.82754458]
[1758363493870,0.54952259,115950.0,115940.0,0.82556458]
[1758363494290,0.54632259,115950.0,115940.0,0.82556458]
[1758363494508,0.54632259,115950.0,115940.0,0.82754458]
[1758363500182,0.54952259,115950.0,115940.0,0.82552458]
[1758363500596,0.22786955,115950.0,115940.0,0.82552458]
[1758363500971,0.54952259,115950.0,115940.0,0.82552458]
[1758363502528,0.22466955,115950.0,115940.0,0.82750458]
[1758363502734,0.54632259,115950.0,115940.0,0.82750458]
[1758363506181,0.22466955,115950.0,115940.0,0.82750458]
[1758363506442,0.54632259,115950.0,115940.0,0.82750458]
[1758363507833,0.54954259,115950.0,115940.0,0.82552458]
[1758363508382,0.54632259,115950.0,115940.0,0.82552458]
[1758363509051,0.54632259,115950.0,115940.0,0.82768458]
[1758363513919,0.54632259,115950.0,115940.0,0.82552458]
[1758363517102,0.22466955,115950.0,115940.0,0.82552458]
[1758363517307,0.54632259,115950.0,115940.0,0.82552458]
[1758363518775,0.54632259,115950.0,115940.0,0.82768458]
[1758363519896,0.22466955,115950.0,115940.0,0.82768458]
[1758363520111,0.54632259,115950.0,115940.0,0.82768458]
[1758363521388,0.54905259,115950.0,115940.0,0.35476967]
[1758363522083,0.57896383,115950.0,115940.0,0.35476967]
[1758363522299,0.58503224,115950.0,115940.0,0.35476967]
[1758363523151,0.57896383,115950.0,115940.0,0.35476967]
[1758363523309,0.54905259,115950.0,115940.0,0.35476967]
[1758363523758,0.54905259,115950.0,115940.0,0.35466967]
[1758363523988,0.55512106,115950.0,115940.0,0.35466967]
[1758363526017,0.55525942,115950.0,115940.0,0.35466967]
[1758363533691,0.55203942,115950.0,115940.0,0.35466967]
[1758363535646,0.23024802,115950.0,115940.0,0.35682967]
[1758363535857,0.55203942,115950.0,115940.0,0.35682967]
[1758363537116,0.52853942,115950.0,115940.0,0.35682967]
[1758363537323,0.55341942,115950.0,115940.0,0.35682967]
[1758363542642,0.20462802,115950.0,115940.0,0.55597268]
[1758363542882,0.52641673,115950.0,115940.0,0.55597268]
[1758363547010,0.20462533,115950.0,115940.0,0.55597268]
[1758363547272,0.52641673,115950.0,115940.0,0.55597268]
[1758363550086,0.23463533,115950.0,115940.0,0.08626967]
[1758363550427,0.55642673,115950.0,115940.0,0.08626967]
[1758363550865,0.55642673,115950.0,115940.0,0.35462967]
[1758363551518,0.58671339,115950.0,115940.0,0.001]
[1758363552798,0.26492199,115950.0,115940.0,0.0011]
[1758363552938,0.58671339,115950.0,115940.0,0.0011]
[1758363556434,0.58671339,115950.0,115940.0,0.2692]
[1758363557836,0.26492199,115950.0,115940.0,0.2692]
[1758363558069,0.58671339,115950.0,115940.0,0.2692]
[1758363560313,0.85507339,115950.0,115940.0,0.2692]
[1758363560575,0.50299533,115950.0,115940.0,0.2692]
[1758363565471,0.23143533,115950.0,115940.0,0.2692]
[1758363565678,0.49979533,115950.0,115940.0,0.2692]
[1758363567058,0.23143533,115950.0,115940.0,0.27129]
[1758363567257,0.49975533,115950.0,115940.0,0.27129]
[1758363569130,0.23143533,115950.0,115940.0,0.27129]
[1758363569360,0.49979533,115950.0,115940.0,0.27129]
[1758363570018,0.20670533,115950.0,115940.0,0.2744]
[1758363570207,0.20462533,115950.0,115940.0,0.29697]
[1758363571158,0.22958533,115950.0,115940.0,0.29697]
[1758363574846,0.23174533,115950.0,115940.0,0.56529]
[1758363575498,0.23174533,115950.0,115940.0,0.56379695]
[1758363575723,0.22958533,115950.0,115940.0,0.56379695]
[1758363577477,0.22958533,115950.0,115940.0,0.56389695]
[1758363578494,0.22958834,115950.0,115940.0,0.56389695]
[1758363579881,0.20462834,115950.0,115940.0,0.64916662]
[1758363580099,0.20462834,115950.0,115940.0,0.82166963]
[1758363580353,0.20462834,115950.0,115940.0,0.55396268]
[1758363582268,0.19855955,115950.0,115940.0,0.55396268]
[1758363582505,0.2046293,115950.0,115940.0,0.55396268]
[1758363585872,0.2046293,115950.0,115940.0,0.87569286]
[1758363586106,0.2046293,115950.0,115940.0,1.14379286]
[1758363588362,0.2046293,115950.0,115940.0,0.82206268]
[1758363588564,0.2046293,115950.0,115940.0,1.14379286]
[1758363588769,0.2046293,115950.0,115940.0,0.55374268]
[1758363588894,0.2046293,115950.0,115940.0,1.14379286]
[1758363589829,0.2046293,115950.0,115940.0,0.82206268]
[1758363590672,0.2046293,115950.0,115940.0,1.14379286]
[1758363599104,0.2046293,115950.0,115940.0,0.82206268]
[1758363599328,0.2046293,115950.0,115940.0,1.14379286]
[1758363602179,0.2046293,115950.0,115940.0,0.55374268]
[1758363602390,0.2046293,115950.0,115940.0,1.14379286]
[1758363603128,0.2046293,115950.0,115940.0,0.82206268]
[1758363603363,0.2046293,115950.0,115940.0,1.14379286]
[1758363608649,0.2046293,115950.0,115940.0,0.82206268]
[1758363608928,0.2046293,115950.0,115940.0,1.14379286]
[1758363610003,0.2046293,115950.0,115940.0,0.55374268]
[1758363610218,0.2046293,115950.0,115940.0,1.14379286]
[1758363610437,0.2273893,115950.0,115940.0,1.14379286]
[1758363613145,0.22738976,115950.0,115940.0,1.14379286]
[1758363615505,0.20462976,115950.0,115940.0,1.14379286]
[1758363627377,0.20462976,115950.0,115940.0,1.14375286]
[1758363631757,0.20462976,115950.0,115940.0,0.82202268]
[1758363632055,0.20462976,115950.0,115940.0,1.14375286]
[1758363632822,0.19855955,115950.0,115940.0,1.14375286]
[1758363632962,0.20463075,115950.0,115940.0,1.14375286]
[1758363642364,0.20463071,115950.0,115940.0,1.14375286]
[1758363646034,0.20463071,115950.0,115940.0,0.82202268]
[1758363653647,0.20463103,115950.0,115940.0,0.82202268]
[1758363662211,0.03214289,115950.0,115940.0,1.14373218]
[1758363662442,0.02607141,115950.0,115940.0,1.17565408]
[1758363662674,0.00014695,115950.0,115940.0,1.49736358]
[1758363663134,0.00014695,115950.0,115940.0,1.20157909]
[1758363663346,0.00014695,115950.0,115940.0,1.52328859]
[1758363663779,0.00014695,115950.0,115940.0,1.25518859]
[1758363664688,0.00014695,115950.0,115940.0,0.98690859]
[1758363664907,0.00014695,115950.0,115940.0,1.25514859]
[1758363664908,4.695e-05,115950.0,115940.0,1.25514859]
[1758363666519,4.695e-05,115950.0,115940.0,0.98690859]
[1758363666751,4.695e-05,115950.0,115940.0,1.25514859]
[1758363675100,0.0001,115970.0,115960.0,0.20262516]
[1758363675349,0.00014694,115970.0,115960.0,0.82414788]
[1758363675586,0.00014694,115970.0,115960.0,0.85399788]
[1758363676479,0.00214694,115970.0,115960.0,0.85399788]
[1758363677293,0.00014694,115970.0,115960.0,0.85399788]
[1758363677508,0.00614694,115970.0,115960.0,0.85399788]
[1758363677935,0.00014694,115970.0,115960.0,0.85399788]
[1758363678147,0.00114694,115970.0,115960.0,0.85399788]
[1758363678613,0.00414694,115970.0,115960.0,0.85399788]
[1758363680412,0.00414694,115970.0,115960.0,0.58579788]
[1758363680634,0.00414694,115970.0,115960.0,0.85395788]
[1758363682964,0.00414694,115970.0,115960.0,0.91895238]
[1758363684483,0.00414694,115970.0,115960.0,1.24066188]
[1758363690553,0.00414694,115970.0,115960.0,0.91895238]
[1758363693594,0.00414694,115970.0,115960.0,1.24066188]
[1758363694429,0.00414694,115970.0,115960.0,0.91895238]
[1758363696539,0.00414694,115970.0,115960.0,1.24066188]
[1758363697154,0.00414694,115970.0,115960.0,0.91895238]
[1758363697415,0.00414694,115970.0,115960.0,1.24066188]
[1758363702851,0.00414694,115970.0,115960.0,0.91895238]
[1758363703041,0.00414694,115970.0,115960.0,1.24066188]
[1758363705985,0.00414694,115970.0,115960.0,1.24051296]
[1758363708448,0.00414694,115970.0,115960.0,0.91895238]
[1758363708661,0.00414694,115970.0,115960.0,1.24051296]
[1758363712066,0.00414694,115970.0,115960.0,0.91895238]
[1758363712341,0.00414694,115970.0,115960.0,1.24051296]
[1758363715545,0.00414694,115970.0,115960.0,0.97235296]
[1758363715744,0.00414694,115970.0,115960.0,0.91891238]
[1758363715945,0.00414694,115970.0,115960.0,1.24047296]
[1758363721317,0.00414694,115970.0,115960.0,0.91891238]
[1758363721533,0.00414694,115970.0,115960.0,1.24047296]
[1758363723957,0.00414694,115970.0,115960.0,0.91891238]
[1758363724103,0.00414694,115970.0,115960.0,1.24047296]
[1758363725911,0.50341591,115970.0,115960.0,0.35342272]
[1758363726126,0.21176657,115970.0,115960.0,0.62154272]
[1758363726338,0.52617591,115970.0,115960.0,0.62154272]
[1758363727199,0.52617591,115970.0,115960.0,0.79401598]
[1758363728451,0.52617591,115970.0,115960.0,0.52596293]
[1758363729200,0.55210129,115970.0,115960.0,0.52596293]
[1758363738829,0.3765529,115970.0,115960.0,0.52596293]
[1758363739185,0.54901129,115970.0,115960.0,0.52596293]
[1758363739411,0.3765529,115970.0,115960.0,0.52596293]
[1758363740023,0.3765529,115970.0,115960.0,0.52798293]
[1758363740957,0.54901129,115970.0,115960.0,0.52798293]
[1758363741170,0.3765529,115970.0,115960.0,0.52798293]
[1758363741573,0.3765529,115970.0,115960.0,0.55504293]
[1758363741992,0.3516329,115970.0,115960.0,0.55504293]
[1758363742826,0.3516329,115970.0,115960.0,0.53106293]
[1758363743019,0.3516329,115970.0,115960.0,0.55504293]
[1758363743523,0.3743929,115970.0,115960.0,0.55504293]
[1758363746259,0.3743929,115970.0,115960.0,0.82309598]
[1758363749140,0.05283232,115970.0,115960.0,0.82309598]
[1758363749347,0.3743929,115970.0,115960.0,0.82309598]
[1758363758191,0.3764229,115970.0,115960.0,0.82309598]
[1758363767858,0.3765035,115970.0,115960.0,0.82309598]
[1758363768340,0.54896189,115970.0,115960.0,0.79603598]
[1758363771915,0.54896189,115970.0,115960.0,0.52791598]
[1758363772142,0.55206189,115970.0,115960.0,0.79393598]
[1758363773044,0.23042071,115970.0,115960.0,0.79393598]
[1758363773542,0.54896189,115970.0,115960.0,0.79393598]
[1758363776039,0.54896189,115970.0,115960.0,0.79592598]
[1758363778267,0.54896189,115970.0,115960.0,0.62345272]
[1758363778469,0.54896189,115970.0,115960.0,0.79592598]
[1758363778677,0.54896189,115970.0,115960.0,0.79393598]
[1758363779951,0.54896189,115970.0,115960.0,0.79592598]
[1758363780393,0.54896189,115970.0,115960.0,0.62146272]
[1758363782749,0.54896189,115970.0,115960.0,0.79393598]
[1758363782968,0.54896189,115970.0,115960.0,0.79597598]
[1758363784127,0.54896189,115970.0,115960.0,0.62350272]
[1758363787307,0.55112189,115970.0,115960.0,0.35342272]
[1758363787467,0.55406189,115970.0,115960.0,0.62146272]
[1758363791621,0.55112189,115970.0,115960.0,0.62146272]
[1758363792370,0.55112189,115970.0,115960.0,0.62350272]
[1758363795982,0.58397313,115970.0,115960.0,0.26815305]
[1758363796211,0.62032662,115970.0,115960.0,0.53619305]
[1758363796433,0.96032662,115970.0,115960.0,0.26814]
[1758363796887,0.96032662,115970.0,115960.0,0.26804]
[1758363797109,1.22836662,115970.0,115960.0,0.26804]
[1758363797364,0.96032662,115970.0,115960.0,0.26804]
[1758363797586,1.22836662,115970.0,115960.0,0.26804]
[1758363798617,0.96032662,115970.0,115960.0,0.26804]
[1758363798831,1.22836662,115970.0,115960.0,0.26804]
[1758363799443,1.22836662,115970.0,115950.0,0.0932]
[1758363799444,0.17247326,115960.0,115950.0,0.0932]
[1758363799781,0.52107444,115960.0,115950.0,0.35330967]
[1758363799997,0.52117444,115960.0,115950.0,0.35330967]
[1758363800666,0.54710203,115960.0,115950.0,0.35330967]
[1758363800852,0.54810203,115960.0,115950.0,0.35330967]
[1758363801508,0.54810203,115960.0,115950.0,0.35534967]
[1758363806580,0.22646085,115960.0,115950.0,0.35534967]
[1758363806779,0.54810203,115960.0,115950.0,0.35534967]
[1758363809866,0.54810203,115960.0,115950.0,0.26804]
[1758363809867,0.54614203,115960.0,115950.0,0.26804]
[1758363810099,0.54912203,115960.0,115950.0,0.26804]
[1758363810538,0.54614203,115960.0,115950.0,0.26804]
[1758363814103,0.54614203,115960.0,115950.0,0.26814]
[1758363814401,0.54614203,115960.0,115950.0,0.2703]
[1758363816529,0.54614203,115960.0,115950.0,0.26814]
[1758363816728,0.54912203,115960.0,115950.0,0.26814]
[1758363817370,0.54614203,115960.0,115950.0,0.2703]
[1758363821111,0.54614203,115960.0,115950.0,0.29733]
[1758363823295,0.55220629,115960.0,115950.0,0.27345]
[1758363823503,0.55220629,115960.0,115950.0,0.2703]
[1758363827919,0.87398419,115960.0,115950.0,0.2703]
[1758363828097,0.87215594,115960.0,115950.0,0.2703]
[1758363829434,0.86608642,115960.0,115950.0,0.2703]
[1758363829613,0.87215606,115960.0,115950.0,0.2703]
[1758363834115,0.87215606,115960.0,115950.0,0.29733]
[1758363837644,0.55044915,115960.0,115950.0,0.29733]
[1758363839639,0.55044915,115960.0,115950.0,0.2703]
[1758363840378,0.87215606,115960.0,115950.0,0.2703]
[1758363844374,0.22874224,115960.0,115950.0,0.2703]
[1758363844515,0.87215606,115960.0,115950.0,0.2703]
[1758363845817,0.55044915,115960.0,115950.0,0.2703]
[1758363846447,0.55045023,115960.0,115950.0,0.2703]
[1758363847392,0.55045023,115960.0,115950.0,0.26814]
[1758363847839,0.55338023,115960.0,115950.0,0.26814]
[1758363848492,0.87508714,115960.0,115950.0,0.26814]
[1758363848702,0.87508714,115960.0,115950.0,0.2681]
[1758363850414,0.87508727,115960.0,115950.0,0.2681]
[1758363852663,0.87508727,115960.0,115950.0,0.0001]
[1758363852879,0.87508727,115960.0,115950.0,0.2681]
[1758363861157,0.87215727,115960.0,115950.0,0.2681]
[1758363881126,0.87215727,115960.0,115950.0,0.27008]
[1758363887532,0.22874345,115960.0,115950.0,0.27008]
[1758363887731,0.55045036,115960.0,115950.0,0.2732]
[1758363887938,0.55045036,115960.0,115950.0,0.29766]
[1758363888576,0.55045036,115960.0,115950.0,0.27008]
[1758363889010,0.22874345,115960.0,115950.0,0.27008]
[1758363889167,0.87215727,115960.0,115950.0,0.27008]
[1758363889874,0.550446,115960.0,115950.0,0.27008]
[1758363892848,0.550446,115960.0,115950.0,0.00208]
[1758363893283,0.527486,115960.0,115950.0,0.0001]